fUSD/lending_fUSD_20250306
["ID","MTS","AMOUNT","RATE_DAILY","PERIOD"]
[355553241,1741269046227,-930.67,0.00012181,2]
[355553242,1741269046236,-500.0,0.00012181,2]
[355553243,1741269046245,-853.54,0.00012181,2]
[355553244,1741269046255,-500.0,0.00012181,2]
[355553245,1741269046265,-500.0,0.00012181,2]
[355553246,1741269046275,-206.8715525,0.00012194,2]
[355553247,1741269046284,-25884.0,0.00012247,2]
[355553248,1741269046294,-151.0,0.00012247,2]
[355553249,1741269046304,-206.8715525,0.00012253,2]
[355553250,1741269046314,-170.96,0.00012258,2]
[355553251,1741269046324,-165.4,0.00012272,2]
[355553252,1741269046334,-1573.16,0.00012272,2]
[355553253,1741269046343,-500.0,0.0001229,2]
[355553254,1741269046353,-500.0,0.0001229,2]
[355553255,1741269046362,-500.0,0.0001229,2]
[355553256,1741269046371,-350.0,0.0001229,2]
[355553257,1741269046381,-500.0,0.0001229,2]
[355553258,1741269046390,-500.0,0.0001229,2]
[355553259,1741269046400,-500.0,0.0001229,2]
[355553260,1741269046410,-500.0,0.0001229,2]
[355553261,1741269046419,-500.0,0.0001229,2]
[355553262,1741269046430,-500.0,0.0001229,2]
[355553263,1741269046439,-500.0,0.0001229,2]
[355553264,1741269046449,-500.0,0.0001229,2]
[355553265,1741269046459,-500.0,0.0001229,2]
[355553266,1741269046468,-500.0,0.0001229,2]
[355553267,1741269046478,-587.39,0.0001229,2]
[355553268,1741269046488,-500.0,0.0001229,2]
[355553269,1741269046498,-209.73240596,0.0001229,2]
[355553270,1741269046507,-500.0,0.0001229,2]
[355553271,1741269046518,-500.0,0.0001229,2]
[355553272,1741269046527,-500.0,0.0001229,2]
[355553273,1741269046537,-273.91932654,0.0001229,2]
[355553274,1741269046547,-608.98,0.0001229,2]
[355553275,1741269046557,-529.4,0.0001229,2]
[355553276,1741269046568,-500.0,0.0001229,2]
[355553277,1741269046578,-649.21445819,0.0001229,2]
[355553278,1741269046587,-500.0,0.0001229,2]
[355553279,1741269046597,-500.0,0.0001229,2]
[355553280,1741269046607,-500.0,0.0001229,2]
[355553281,1741269046616,-709.38,0.0001229,2]
[355553282,1741269046626,-500.0,0.0001229,2]
[355553283,1741269046635,-1276.36,0.0001229,2]
[355553284,1741269046645,-500.0,0.0001229,2]
[355553285,1741269046655,-775.4,0.0001229,2]
[355553286,1741269046665,-500.0,0.0001229,2]
[355553287,1741269046675,-596.52,0.0001229,2]
[355553288,1741269046684,-1388.1,0.0001229,2]
[355553289,1741269046694,-406.50321301,0.0001229,2]
[355553290,1741269046703,-1049.59,0.0001229,2]
[355553291,1741269046712,-8540.02,0.0001229,2]
[355553292,1741269046722,-4466.49,0.0001229,2]
[355553293,1741269046732,-718.65,0.0001229,2]
[355553294,1741269046741,-500.0,0.0001229,2]
[355553295,1741269046751,-1177.49,0.0001229,2]
[355553296,1741269046760,-7240.63,0.0001229,2]
[355553297,1741269046770,-500.0,0.0001229,2]
[355553298,1741269046779,-500.0,0.0001229,2]
[355553299,1741269046789,-504.94,0.0001229,2]
[355553300,1741269046799,-500.0,0.0001229,2]
[355553301,1741269046808,-878.37,0.0001229,2]
[355553302,1741269046818,-500.0,0.0001229,2]
[355553303,1741269046827,-1915.46,0.0001229,2]
[355553304,1741269046836,-500.0,0.0001229,2]
[355553305,1741269046847,-1000.0,0.0001229,2]
[355553306,1741269046859,-1991.52,0.0001229,2]
[355553307,1741269046869,-1182.18,0.0001229,2]
[355553308,1741269046879,-998.33,0.0001229,2]
[355553309,1741269046889,-500.0,0.0001229,2]
[355553310,1741269046899,-1577.66,0.0001229,2]
[355553311,1741269046909,-3971.39,0.0001229,2]
[355553312,1741269046919,-500.0,0.00012291,2]
[355553313,1741269046930,-404.42274242,0.00012291,2]
[355553314,1741269046940,-500.0,0.00012291,2]
[355553315,1741269046949,-500.0,0.00012291,2]
[355553316,1741269046959,-500.0,0.00012291,2]
[355553317,1741269046970,-206.8715525,0.00012312,2]
[355553318,1741269046980,-151.0,0.00012329,2]
[355553319,1741269046991,-151.0,0.00012329,2]
[355553320,1741269047000,-151.0,0.00012329,2]
[355553321,1741269047010,-151.0,0.00012329,2]
[355553322,1741269047021,-151.0,0.00012329,2]
[355553323,1741269047030,-259.104569,0.00012329,2]
[355553324,1741269047040,-259.104569,0.00012329,2]
[355553325,1741269047051,-151.0,0.00012329,2]
[355553326,1741269047061,-151.0,0.00012329,2]
[355553327,1741269047071,-151.0,0.00012329,2]
[355553328,1741269047081,-151.0,0.00012329,2]
[355553329,1741269047091,-151.0,0.00012329,2]
[355553330,1741269047100,-151.0,0.00012329,2]
[355553331,1741269047111,-292.870549,0.00012329,2]
[355553332,1741269047120,-151.0,0.00012329,2]
[355553333,1741269047130,-151.0,0.00012329,2]
[355553334,1741269047140,-151.0,0.00012329,2]
[355553335,1741269047150,-151.0,0.00012329,2]
[355553336,1741269047160,-151.0,0.00012329,2]
[355553337,1741269047170,-151.0,0.00012329,2]
[355553338,1741269047180,-151.0,0.00012329,2]
[355553339,1741269047190,-151.0,0.00012329,2]
[355553340,1741269047200,-151.0,0.00012329,2]
[355553341,1741269047210,-178.44007,0.00012329,2]
[355553342,1741269047219,-178.44007,0.00012329,2]
[355553343,1741269047229,-151.0,0.00012329,2]
[355553344,1741269047239,-151.0,0.00012329,2]
[355553345,1741269047248,-151.711013,0.00012329,2]
[355553346,1741269047258,-151.0,0.00012329,2]
[355553347,1741269047268,-151.0,0.00012329,2]
[355553348,1741269047278,-151.0,0.00012329,2]
[355553349,1741269047288,-843.287066,0.00012329,2]
[355553350,1741269047299,-843.287066,0.00012329,2]
[355553351,1741269047310,-151.0,0.00012329,2]
[355553352,1741269047320,-151.0,0.00012329,2]
[355553353,1741269047330,-151.0,0.00012329,2]
[355553354,1741269047340,-324.15724242,0.00012347,2]
[355553355,1741269047351,-218.64438652,0.00012347,2]
[355553356,1741269047361,-1315.13762729,0.00012352,2]
[355553357,1741269047371,-206.8715525,0.00012371,2]
[355553358,1741269047381,-552.29,0.00012379,2]
[355553359,1741269047391,-500.0,0.00012379,2]
[355553360,1741269047400,-669.32,0.00012379,2]
[355553361,1741269047410,-500.0,0.00012379,2]
[355553362,1741269047421,-1224.26,0.00012379,2]
[355553363,1741269047431,-500.0,0.00012379,2]
[355553364,1741269047441,-903.82,0.00012379,2]
[355553365,1741269047450,-1005.53,0.00012379,2]
[355553366,1741269047460,-1253.01,0.00012379,2]
[355553367,1741269047470,-667.29,0.00012379,2]
[355553368,1741269047480,-1065.76,0.00012379,2]
[355553369,1741269047491,-1005.71,0.00012379,2]
[355553370,1741269047500,-792.38,0.00012379,2]
[355553371,1741269047511,-3317.75,0.00012379,2]
[355553372,1741269047520,-500.0,0.00012379,2]
[355553373,1741269047530,-883.23,0.00012379,2]
[355553374,1741269047540,-500.0,0.00012379,2]
[355553375,1741269047553,-946.09,0.00012379,2]
[355553376,1741269047563,-502.27,0.00012379,2]
[355553377,1741269047574,-3273.16,0.00012379,2]
[355553378,1741269047585,-500.0,0.00012379,2]
[355553379,1741269047595,-500.0,0.00012379,2]
[355553380,1741269047606,-682.6,0.00012379,2]
[355553381,1741269047616,-578.21,0.00012379,2]
[355553382,1741269047626,-500.0,0.00012379,2]
[355553383,1741269047637,-504.65,0.00012379,2]
[355553384,1741269047648,-500.0,0.0001239,2]
[355553385,1741269047658,-500.0,0.0001239,2]
[355553386,1741269047668,-500.0,0.0001239,2]
[355553387,1741269047678,-500.0,0.0001239,2]
[355553388,1741269047689,-500.0,0.0001239,2]
[355553389,1741269047698,-500.0,0.0001239,2]
[355553390,1741269047708,-500.0,0.0001239,2]
[355553391,1741269047718,-500.0,0.0001239,2]
[355553392,1741269047728,-500.0,0.0001239,2]
[355553393,1741269047738,-500.0,0.0001239,2]
[355553394,1741269047748,-500.0,0.0001239,2]
[355553395,1741269047758,-500.0,0.0001239,2]
[355553396,1741269047769,-500.0,0.0001239,2]
[355553397,1741269047779,-500.0,0.0001239,2]
[355553398,1741269047789,-500.0,0.0001239,2]
[355553399,1741269047800,-500.0,0.0001239,2]
[355553400,1741269047810,-500.0,0.0001239,2]
[355553401,1741269047820,-500.0,0.0001239,2]
[355553402,1741269047830,-500.0,0.0001239,2]
[355553403,1741269047840,-500.0,0.0001239,2]
[355553404,1741269047853,-500.0,0.0001239,2]
[355553405,1741269047863,-500.0,0.0001239,2]
[355553406,1741269047872,-500.0,0.0001239,2]
[355553407,1741269047882,-500.0,0.0001239,2]
[355553408,1741269047893,-500.0,0.0001239,2]
[355553409,1741269047903,-500.0,0.0001239,2]
[355553410,1741269047913,-500.0,0.0001239,2]
[355553411,1741269047923,-500.0,0.0001239,2]
[355553412,1741269047933,-717.0,0.0001239,2]
[355553413,1741269047943,-500.0,0.0001239,2]
[355553414,1741269047953,-500.0,0.0001239,2]
[355553415,1741269047964,-500.0,0.0001239,2]
[355553416,1741269047974,-500.0,0.0001239,2]
[355553417,1741269047983,-500.0,0.0001239,2]
[355553418,1741269047993,-500.0,0.0001239,2]
[355553419,1741269048003,-500.0,0.0001239,2]
[355553420,1741269048013,-500.0,0.0001239,2]
[355553421,1741269048024,-500.0,0.0001239,2]
[355553422,1741269048035,-792.0,0.0001239,2]
[355553423,1741269048045,-500.0,0.0001239,2]
[355553424,1741269048058,-500.0,0.0001239,2]
[355553425,1741269048069,-500.0,0.0001239,2]
[355553426,1741269048080,-500.0,0.0001239,2]
[355553427,1741269048091,-500.0,0.0001239,2]
[355553428,1741269048102,-500.0,0.0001239,2]
[355553429,1741269048112,-500.0,0.0001239,2]
[355553430,1741269048123,-500.0,0.0001239,2]
[355553431,1741269048133,-500.0,0.0001239,2]
[355553432,1741269048143,-500.0,0.0001239,2]
[355553433,1741269048154,-500.0,0.0001239,2]
[355553434,1741269048165,-759.0,0.0001239,2]
[355553435,1741269048175,-500.0,0.0001239,2]
[355553436,1741269048186,-500.0,0.0001239,2]
[355553437,1741269048196,-500.0,0.0001239,2]
[355553438,1741269048207,-500.0,0.0001239,2]
[355553439,1741269048217,-500.0,0.0001239,2]
[355553440,1741269048228,-500.0,0.0001239,2]
[355553441,1741269048238,-500.0,0.0001239,2]
[355553442,1741269048250,-500.0,0.0001239,2]
[355553443,1741269048260,-500.0,0.0001239,2]
[355553444,1741269048270,-719.0,0.0001239,2]
[355553445,1741269048280,-206.8715525,0.00012429,2]
[355553446,1741269048290,-500.0,0.00012455,2]
[355553447,1741269048302,-500.0,0.00012455,2]
[355553448,1741269048312,-565.86,0.00012455,2]
[355553449,1741269048323,-500.0,0.00012455,2]
[355553450,1741269048334,-623.93,0.00012455,2]
[355553451,1741269048344,-500.0,0.00012455,2]
[355553452,1741269048354,-500.0,0.00012455,2]
[355553453,1741269048365,-500.0,0.00012455,2]
[355553454,1741269048375,-500.0,0.00012455,2]
[355553455,1741269048386,-500.0,0.00012455,2]
[355553456,1741269048396,-627.51,0.00012455,2]
[355553457,1741269048406,-540.747849,0.00012455,2]
[355553458,1741269048416,-500.0,0.00012455,2]
[355553459,1741269048426,-823.772183,0.00012455,2]
[355553460,1741269048437,-654.73,0.00012455,2]
[355553461,1741269048447,-220.20086149,0.00012455,2]
[355553462,1741269048458,-757.21,0.00012455,2]
[355553463,1741269048468,-723.17,0.00012455,2]
[355553464,1741269048478,-500.0,0.00012455,2]
[355553465,1741269048489,-527.54252993,0.00012455,2]
[355553466,1741269048499,-500.0,0.00012455,2]
[355553467,1741269048510,-659.4,0.00012455,2]
[355553468,1741269048520,-619.01,0.00012455,2]
[355553469,1741269048530,-500.0,0.00012455,2]
[355553470,1741269048540,-718.28,0.00012455,2]
[355553471,1741269048551,-622.21,0.00012455,2]
[355553472,1741269048561,-514.13,0.00012455,2]
[355553473,1741269048573,-507.78,0.00012455,2]
[355553474,1741269048583,-500.0,0.00012455,2]
[355553475,1741269048593,-500.0,0.00012455,2]
[355553476,1741269048603,-529.07,0.00012455,2]
[355553477,1741269048613,-500.0,0.00012455,2]
[355553478,1741269048623,-500.0,0.00012455,2]
[355553479,1741269048633,-500.0,0.00012455,2]
[355553480,1741269048643,-923.94,0.00012455,2]
[355553481,1741269048653,-726.64,0.00012455,2]
[355553482,1741269048664,-500.0,0.00012455,2]
[355553483,1741269048674,-2202.32,0.00012455,2]
[355553484,1741269048684,-2108.9,0.00012455,2]
[355553485,1741269048694,-1532.41,0.00012455,2]
[355553486,1741269048705,-1034.5,0.00012455,2]
[355553487,1741269048715,-500.0,0.00012455,2]
[355553488,1741269048725,-500.0,0.00012455,2]
[355553489,1741269048735,-500.0,0.00012455,2]
[355553490,1741269048746,-1070.53,0.00012455,2]
[355553491,1741269048756,-500.0,0.00012455,2]
[355553492,1741269048767,-592.17,0.00012455,2]
[355553493,1741269048777,-2375.51,0.00012455,2]
[355553494,1741269048788,-1954.7,0.00012455,2]
[355553495,1741269048799,-2349.23,0.00012455,2]
[355553496,1741269048809,-1007.13,0.00012455,2]
[355553497,1741269048820,-1857.91,0.00012455,2]
[355553498,1741269048830,-500.0,0.00012455,2]
[355553499,1741269048840,-853.44,0.00012455,2]
[355553500,1741269048852,-1337.61,0.00012455,2]
[355553501,1741269048865,-1095.71,0.00012455,2]
[355553502,1741269048876,-642.42,0.00012455,2]
[355553503,1741269048887,-725.96,0.00012455,2]
[355553504,1741269048899,-500.0,0.00012455,2]
[355553505,1741269048910,-998.59,0.00012455,2]
[355553506,1741269048921,-2726.04,0.00012455,2]
[355553507,1741269048934,-1294.48,0.00012455,2]
[355553508,1741269048944,-950.94,0.00012455,2]
[355553509,1741269048955,-1467.25,0.00012455,2]
[355553510,1741269048965,-1203.41,0.00012455,2]
[355553511,1741269048975,-627.03,0.00012455,2]
[355553512,1741269048985,-1156.11,0.00012455,2]
[355553513,1741269048996,-1323.01,0.00012455,2]
[355553514,1741269049005,-2396.8,0.00012455,2]
[355553515,1741269049015,-3550.43,0.00012455,2]
[355553516,1741269049027,-500.0,0.00012455,2]
[355553517,1741269049037,-500.0,0.00012455,2]
[355553518,1741269049049,-500.0,0.00012455,2]
[355553519,1741269049060,-500.0,0.00012455,2]
[355553520,1741269049070,-927.17,0.00012455,2]
[355553521,1741269049081,-978.75,0.00012455,2]
[355553522,1741269049092,-500.0,0.00012455,2]
[355553523,1741269049103,-1108.19,0.00012455,2]
[355553524,1741269049114,-500.0,0.00012455,2]
[355553525,1741269049125,-5277.61,0.00012455,2]
[355553526,1741269049136,-1877.43,0.00012455,2]
[355553527,1741269049359,-788.07,0.00012455,2]
[355553528,1741269049369,-500.0,0.00012455,2]
[355553529,1741269049379,-644.92,0.00012455,2]
[355553530,1741269049389,-500.0,0.00012455,2]
[355553531,1741269049398,-592.2,0.00012455,2]
[355553532,1741269049408,-611.4,0.00012455,2]
[355553533,1741269049417,-605.16,0.00012455,2]
[355553534,1741269049427,-789.01,0.00012455,2]
[355553535,1741269049436,-839.52,0.00012455,2]
[355553536,1741269049446,-500.0,0.00012455,2]
[355553537,1741269049456,-816.51,0.00012455,2]
[355553538,1741269049466,-500.0,0.00012455,2]
[355553539,1741269049476,-500.0,0.00012455,2]
[355553540,1741269049485,-949.13,0.00012455,2]
[355553541,1741269049494,-1385.73,0.00012455,2]
[355553542,1741269049505,-930.67,0.00012455,2]
[355553543,1741269049514,-500.0,0.00012455,2]
[355553544,1741269049525,-853.54,0.00012455,2]
[355553545,1741269049535,-500.0,0.00012455,2]
[355553546,1741269049544,-500.0,0.00012455,2]
[355553547,1741269049556,-206.8715525,0.00012488,2]
[355553548,1741269049566,-1315.13762729,0.00012534,2]
[355553549,1741269049576,-1576.68584,0.0001254,2]
[355553550,1741269049585,-1573.16,0.00012546,2]
[355553551,1741269049595,-206.8715525,0.00012547,2]
[355553552,1741269049605,-500.0,0.00012564,2]
[355553553,1741269049614,-500.0,0.00012564,2]
[355553554,1741269049624,-500.0,0.00012564,2]
[355553555,1741269049633,-350.0,0.00012564,2]
[355553556,1741269049643,-500.0,0.00012564,2]
[355553557,1741269049652,-500.0,0.00012564,2]
[355553558,1741269049661,-500.0,0.00012564,2]
[355553559,1741269049671,-500.0,0.00012564,2]
[355553560,1741269049680,-500.0,0.00012564,2]
[355553561,1741269049690,-500.0,0.00012564,2]
[355553562,1741269049700,-412.97588615,0.00012564,2]
[355553563,1741269049710,-500.0,0.00012564,2]
[355553564,1741269049721,-500.0,0.00012564,2]
[355553565,1741269049732,-500.0,0.00012564,2]
[355553566,1741269049744,-587.39,0.00012564,2]
[355553567,1741269049755,-500.0,0.00012564,2]
[355553568,1741269049765,-500.0,0.00012564,2]
[355553569,1741269049775,-500.0,0.00012564,2]
[355553570,1741269049785,-500.0,0.00012564,2]
[355553571,1741269049795,-608.98,0.00012564,2]
[355553572,1741269049806,-529.4,0.00012564,2]
[355553573,1741269049816,-548.99625542,0.00012564,2]
[355553574,1741269049825,-500.0,0.00012564,2]
[355553575,1741269049835,-153.42163261,0.00012564,2]
[355553576,1741269049846,-500.0,0.00012564,2]
[355553577,1741269049860,-709.38,0.00012564,2]
[355553578,1741269049869,-500.0,0.00012564,2]
[355553579,1741269049879,-1276.36,0.00012564,2]
[355553580,1741269049890,-500.0,0.00012564,2]
[355553581,1741269049900,-775.4,0.00012564,2]
[355553582,1741269049910,-500.0,0.00012564,2]
[355553583,1741269049920,-596.52,0.00012564,2]
[355553584,1741269049930,-1388.1,0.00012564,2]
[355553585,1741269049941,-1049.59,0.00012564,2]
[355553586,1741269049951,-8540.02,0.00012564,2]
[355553587,1741269049961,-4466.49,0.00012564,2]
[355553588,1741269049971,-718.65,0.00012564,2]
[355553589,1741269049981,-500.0,0.00012564,2]
[355553590,1741269049991,-1177.49,0.00012564,2]
[355553591,1741269050002,-7240.63,0.00012564,2]
[355553592,1741269050012,-500.0,0.00012564,2]
[355553593,1741269050022,-500.0,0.00012564,2]
[355553594,1741269050032,-504.94,0.00012564,2]
[355553595,1741269050041,-500.0,0.00012564,2]
[355553596,1741269050052,-878.37,0.00012564,2]
[355553597,1741269050061,-500.0,0.00012564,2]
[355553598,1741269050070,-1915.46,0.00012564,2]
[355553599,1741269050080,-500.0,0.00012564,2]
[355553600,1741269050091,-1000.0,0.00012564,2]
[355553601,1741269050101,-1991.52,0.00012564,2]
[355553602,1741269050111,-1182.18,0.00012564,2]
[355553603,1741269050121,-998.33,0.00012564,2]
[355553604,1741269050132,-500.0,0.00012564,2]
[355553605,1741269050141,-1577.66,0.00012564,2]
[355553606,1741269050151,-3971.39,0.00012564,2]
[355553607,1741269050161,-500.0,0.00012565,2]
[355553608,1741269050171,-500.0,0.00012565,2]
[355553609,1741269050181,-500.0,0.00012565,2]
[355553610,1741269050191,-268.74885005,0.00012565,2]
[355553611,1741269050201,-977.0,0.000126,2]
[355553612,1741269050211,-206.8715525,0.00012606,2]
[355553613,1741269050220,-324.15724242,0.00012624,2]
[355553614,1741269050230,-218.64438652,0.00012624,2]
[355553615,1741269050240,-486.17799361,0.00012629,2]
[355553616,1741269050250,-155.0,0.00012639,3]
[355553617,1741269050259,-552.29,0.00012653,2]
[355553618,1741269050269,-500.0,0.00012653,2]
[355553619,1741269050278,-669.32,0.00012653,2]
[355553620,1741269050287,-500.0,0.00012653,2]
[355553621,1741269050297,-1224.26,0.00012653,2]
[355553622,1741269050309,-500.0,0.00012653,2]
[355553623,1741269050318,-903.82,0.00012653,2]
[355553624,1741269050328,-1005.53,0.00012653,2]
[355553625,1741269050337,-1253.01,0.00012653,2]
[355553626,1741269050346,-667.29,0.00012653,2]
[355553627,1741269050356,-1065.76,0.00012653,2]
[355553628,1741269050366,-1005.71,0.00012653,2]
[355553629,1741269050375,-792.38,0.00012653,2]
[355553630,1741269050384,-3317.75,0.00012653,2]
[355553631,1741269050393,-500.0,0.00012653,2]
[355553632,1741269050403,-883.23,0.00012653,2]
[355553633,1741269050412,-500.0,0.00012653,2]
[355553634,1741269050421,-946.09,0.00012653,2]
[355553635,1741269050431,-502.27,0.00012653,2]
[355553636,1741269050440,-3273.16,0.00012653,2]
[355553637,1741269050449,-500.0,0.00012653,2]
[355553638,1741269050464,-500.0,0.00012653,2]
[355553639,1741269050473,-682.6,0.00012653,2]
[355553640,1741269050483,-578.21,0.00012653,2]
[355553641,1741269050493,-500.0,0.00012653,2]
[355553642,1741269050503,-504.65,0.00012653,2]
[355553643,1741269050512,-206.8715525,0.00012665,2]
[355553644,1741269050522,-806.39,0.00012702,2]
[355553645,1741269050531,-1315.13762729,0.00012716,2]
[355553646,1741269050541,-206.8715525,0.00012724,2]
[355553647,1741269050551,-1000.0,0.00012728,2]
[355553648,1741269050560,-500.0,0.00012729,2]
[355553649,1741269050571,-500.0,0.00012729,2]
[355553650,1741269050580,-565.86,0.00012729,2]
[355553651,1741269050590,-500.0,0.00012729,2]
[355553652,1741269050600,-623.93,0.00012729,2]
[355553653,1741269050609,-500.0,0.00012729,2]
[355553654,1741269050619,-241.15711931,0.00012729,2]
[355553655,1741269050628,-500.0,0.00012729,2]
[355553656,1741269050639,-500.0,0.00012729,2]
[355553657,1741269050648,-500.0,0.00012729,2]
[355553658,1741269050657,-627.51,0.00012729,2]
[355553659,1741269050667,-540.747849,0.00012729,2]
[355553660,1741269050676,-500.0,0.00012729,2]
[355553661,1741269050685,-823.772183,0.00012729,2]
[355553662,1741269050695,-654.73,0.00012729,2]
[355553663,1741269050704,-757.21,0.00012729,2]
[355553664,1741269050714,-723.17,0.00012729,2]
[355553665,1741269050724,-500.0,0.00012729,2]
[355553666,1741269050735,-500.0,0.00012729,2]
[355553667,1741269050746,-659.4,0.00012729,2]
[355553668,1741269050756,-619.01,0.00012729,2]
[355553669,1741269050766,-500.0,0.00012729,2]
[355553670,1741269050776,-718.28,0.00012729,2]
[355553671,1741269050785,-622.21,0.00012729,2]
[355553672,1741269050795,-514.13,0.00012729,2]
[355553673,1741269050805,-507.78,0.00012729,2]
[355553674,1741269050814,-500.0,0.00012729,2]
[355553675,1741269050823,-500.0,0.00012729,2]
[355553676,1741269050832,-529.07,0.00012729,2]
[355553677,1741269050842,-500.0,0.00012729,2]
[355553678,1741269050852,-500.0,0.00012729,2]
[355553679,1741269050865,-500.0,0.00012729,2]
[355553680,1741269050874,-923.94,0.00012729,2]
[355553681,1741269050884,-726.64,0.00012729,2]
[355553682,1741269050894,-500.0,0.00012729,2]
[355553683,1741269050904,-2202.32,0.00012729,2]
[355553684,1741269050913,-2108.9,0.00012729,2]
[355553685,1741269050922,-1532.41,0.00012729,2]
[355553686,1741269050935,-1034.5,0.00012729,2]
[355553687,1741269050946,-500.0,0.00012729,2]
[355553688,1741269050956,-500.0,0.00012729,2]
[355553689,1741269050966,-500.0,0.00012729,2]
[355553690,1741269050975,-154.370806,0.00012729,2]
[355553691,1741269050985,-1070.53,0.00012729,2]
[355553692,1741269050994,-500.0,0.00012729,2]
[355553693,1741269051003,-592.17,0.00012729,2]
[355553694,1741269051013,-2375.51,0.00012729,2]
[355553695,1741269051023,-1954.7,0.00012729,2]
[355553696,1741269051032,-2349.23,0.00012729,2]
[355553697,1741269051042,-152.801025,0.00012729,2]
[355553698,1741269051051,-151.0,0.00012729,2]
[355553699,1741269051060,-1007.13,0.00012729,2]
[355553700,1741269051070,-151.0,0.00012729,2]
[355553701,1741269051080,-1857.91,0.00012729,2]
[355553702,1741269051090,-500.0,0.00012729,2]
[355553703,1741269051099,-853.44,0.00012729,2]
[355553704,1741269051108,-1337.61,0.00012729,2]
[355553705,1741269051118,-1095.71,0.00012729,2]
[355553706,1741269051127,-642.42,0.00012729,2]
[355553707,1741269051137,-151.0,0.00012729,2]
[355553708,1741269051146,-725.96,0.00012729,2]
[355553709,1741269051156,-500.0,0.00012729,2]
[355553710,1741269051165,-178.44007,0.00012729,2]
[355553711,1741269051175,-998.59,0.00012729,2]
[355553712,1741269051185,-178.44007,0.00012729,2]
[355553713,1741269051194,-2726.04,0.00012729,2]
[355553714,1741269051203,-151.0,0.00012729,2]
[355553715,1741269051212,-1294.48,0.00012729,2]
[355553716,1741269051223,-224.360742,0.00012729,2]
[355553717,1741269051233,-950.94,0.00012729,2]
[355553718,1741269051243,-1467.25,0.00012729,2]
[355553719,1741269051254,-1203.41,0.00012729,2]
[355553720,1741269051263,-627.03,0.00012729,2]
[355553721,1741269051273,-1156.11,0.00012729,2]
[355553722,1741269051283,-1323.01,0.00012729,2]
[355553723,1741269051293,-2396.8,0.00012729,2]
[355553724,1741269051304,-3550.43,0.00012729,2]
[355553725,1741269051314,-151.0,0.00012729,2]
[355553726,1741269051323,-500.0,0.00012729,2]
[355553727,1741269051333,-500.0,0.00012729,2]
[355553728,1741269051342,-500.0,0.00012729,2]
[355553729,1741269051351,-500.0,0.00012729,2]
[355553730,1741269051363,-927.17,0.00012729,2]
[355553731,1741269051372,-978.75,0.00012729,2]
[355553732,1741269051381,-500.0,0.00012729,2]
[355553733,1741269051391,-1108.19,0.00012729,2]
[355553734,1741269051401,-454.11462199,0.00012729,2]
[355553735,1741269051410,-151.0,0.00012729,2]
[355553736,1741269051422,-5277.61,0.00012729,2]
[355553737,1741269051432,-1877.43,0.00012729,2]
[355553738,1741269051442,-788.07,0.00012729,2]
[355553739,1741269051451,-151.0,0.00012729,2]
[355553740,1741269051460,-843.287066,0.00012729,2]